[Event "Early-Titled-Tuesday-Blitz-March-26-2024"]
[Site "Chess.com"]
[Date "2024.03.26"]
[Round "10"]
[White "Kunalm64"]
[Black "EternalNight8"]
[Result "1-0"]
[WhiteElo "2631"]
[BlackElo "2472"]
[TimeControl "180+1"]
[EndTime "9:52:59 PDT"]
[Termination "Kunalm64 won by resignation"]

1. e4 {[%clk 0:02:59.7]} 1... e5 {[%clk 0:02:59.3]} 2. Nf3 {[%clk 0:02:59.3]}
2... Nf6 {[%clk 0:02:59]} 3. Nxe5 {[%clk 0:02:58.9]} 3... d6 {[%clk 0:02:59.3]}
4. Nf3 {[%clk 0:02:59]} 4... Nxe4 {[%clk 0:02:59.6]} 5. d4 {[%clk 0:02:59.5]}
5... d5 {[%clk 0:03:00]} 6. Bd3 {[%clk 0:03:00.2]} 6... Bd6 {[%clk 0:02:59]} 7.
O-O {[%clk 0:03:00.6]} 7... O-O {[%clk 0:02:58.8]} 8. Re1 {[%clk 0:03:01]} 8...
Re8 {[%clk 0:02:49.4]} 9. c4 {[%clk 0:03:01.6]} 9... c6 {[%clk 0:02:49.5]} 10.
Nc3 {[%clk 0:03:01.5]} 10... Bf5 {[%clk 0:02:35.4]} 11. c5 {[%clk 0:02:35.4]}
11... Bc7 {[%clk 0:02:26.2]} 12. Qc2 {[%clk 0:02:35.2]} 12... Nd7 {[%clk
0:01:58.5]} 13. Nxe4 {[%clk 0:02:29.6]} 13... dxe4 {[%clk 0:01:59.4]} 14. Bxe4
{[%clk 0:02:30.2]} 14... Bxe4 {[%clk 0:01:58.4]} 15. Rxe4 {[%clk 0:02:30.2]}
15... Rxe4 {[%clk 0:01:56.1]} 16. Qxe4 {[%clk 0:02:30.6]} 16... Nf6 {[%clk
0:01:56.2]} 17. Qh4 {[%clk 0:02:24.3]} 17... Qd5 {[%clk 0:01:53.7]} 18. Bf4
{[%clk 0:01:55.5]} 18... Bxf4 {[%clk 0:01:49.2]} 19. Qxf4 {[%clk 0:01:55.2]}
19... Re8 {[%clk 0:01:48.9]} 20. h3 {[%clk 0:01:54.1]} 20... h6 {[%clk
0:01:41.6]} 21. Qc7 {[%clk 0:01:53.3]} 21... Re2 {[%clk 0:01:17.4]} 22. Qxb7
{[%clk 0:01:46.4]} 22... Ne4 {[%clk 0:01:10.9]} 23. Rf1 {[%clk 0:01:45.8]} 23...
Qxa2 {[%clk 0:01:01.9]} 24. Qxc6 {[%clk 0:01:41.6]} 24... Qxb2 {[%clk 0:00:58]}
25. Ne5 {[%clk 0:01:34]} 25... Qxd4 {[%clk 0:00:36]} 26. Qc8+ {[%clk 0:01:27.9]}
26... Kh7 {[%clk 0:00:34.6]} 27. Qf5+ {[%clk 0:01:28.3]} 27... Kh8 {[%clk
0:00:32.4]} 28. Nxf7+ {[%clk 0:01:26.3]} 28... Kg8 {[%clk 0:00:32.5]} 29. c6
{[%clk 0:00:55.1]} 29... Ng3 {[%clk 0:00:31.4]} 30. Nxh6+ {[%clk 0:00:52.5]}
30... gxh6 {[%clk 0:00:27.1]} 31. Qg6+ {[%clk 0:00:51.5]} 31... Qg7 {[%clk
0:00:25.4]} 32. Qxg7+ {[%clk 0:00:51.4]} 32... Kxg7 {[%clk 0:00:26.3]} 33. fxg3
{[%clk 0:00:51.9]} 33... Rc2 {[%clk 0:00:26]} 34. Ra1 {[%clk 0:00:52.1]} 34...
Rxc6 {[%clk 0:00:25]} 35. Rxa7+ {[%clk 0:00:52.5]} 35... Kg6 {[%clk 0:00:25.6]}
36. g4 {[%clk 0:00:52.9]} 36... Rc2 {[%clk 0:00:23.4]} 37. Ra5 {[%clk
0:00:51.4]} 37... Rd2 {[%clk 0:00:22.9]} 38. Kh2 {[%clk 0:00:51.5]} 38... Rc2
{[%clk 0:00:22.3]} 39. Kg3 {[%clk 0:00:51.1]} 39... Rc3+ {[%clk 0:00:22.7]} 40.
Kh4 {[%clk 0:00:49]} 40... Rc2 {[%clk 0:00:23.1]} 41. Ra6+ {[%clk 0:00:48.1]}
41... Kg7 {[%clk 0:00:22.7]} 42. g3 {[%clk 0:00:47.3]} 42... Rc3 {[%clk
0:00:22]} 43. Ra5 {[%clk 0:00:45.7]} 43... Kg6 {[%clk 0:00:21.6]} 44. g5 {[%clk
0:00:43.4]} 44... hxg5+ {[%clk 0:00:11.8]} 45. Rxg5+ {[%clk 0:00:43.4]} 45...
Kf6 {[%clk 0:00:12.4]} 46. Ra5 {[%clk 0:00:41.6]} 46... Rc4+ {[%clk 0:00:12.7]}
47. g4 {[%clk 0:00:41.7]} 1-0

[Event "Early-Titled-Tuesday-Blitz-March-26-2024"]
[Site "Chess.com"]
[Date "2024.03.26"]
[Round "10"]
[White "Kostukov_Alex"]
[Black "PapaieDudu"]
[Result "1-0"]
[WhiteElo "2300"]
[BlackElo "2427"]
[TimeControl "180+1"]
[EndTime "9:52:59 PDT"]
[Termination "Kostukov_Alex won by checkmate"]

1. g3 {[%clk 0:02:49.8]} 1... d5 {[%clk 0:02:57.3]} 2. Bg2 {[%clk 0:02:47.7]}
2... Nf6 {[%clk 0:02:57.4]} 3. d3 {[%clk 0:02:48]} 3... e5 {[%clk 0:02:56.1]} 4.
e4 {[%clk 0:02:47.6]} 4... Bb4+ {[%clk 0:02:52.6]} 5. c3 {[%clk 0:02:46.7]} 5...
Bc5 {[%clk 0:02:49.9]} 6. Qe2 {[%clk 0:02:47]} 6... O-O {[%clk 0:02:49.5]} 7.
Nf3 {[%clk 0:02:45.4]} 7... Re8 {[%clk 0:02:49.7]} 8. O-O {[%clk 0:02:44]} 8...
Bg4 {[%clk 0:02:48.9]} 9. h3 {[%clk 0:02:42.3]} 9... Bh5 {[%clk 0:02:49.1]} 10.
g4 {[%clk 0:02:42.6]} 10... Bg6 {[%clk 0:02:49.7]} 11. Nbd2 {[%clk 0:02:34.3]}
11... Nbd7 {[%clk 0:02:49.8]} 12. exd5 {[%clk 0:02:19.7]} 12... Nxd5 {[%clk
0:02:50.1]} 13. Ne4 {[%clk 0:02:19.9]} 13... Bb6 {[%clk 0:02:46.6]} 14. Bg5
{[%clk 0:02:11.2]} 14... f6 {[%clk 0:02:46.6]} 15. Bd2 {[%clk 0:01:58.7]} 15...
Nf8 {[%clk 0:02:44.2]} 16. Nh4 {[%clk 0:01:51.3]} 16... Bf7 {[%clk 0:02:44.3]}
17. c4 {[%clk 0:01:38]} 17... Ne7 {[%clk 0:02:40.5]} 18. c5 {[%clk 0:01:35.1]}
18... Nc6 {[%clk 0:02:36.9]} 19. cxb6 {[%clk 0:01:34]} 19... Nd4 {[%clk
0:02:36.6]} 20. Qd1 {[%clk 0:01:33.2]} 20... axb6 {[%clk 0:02:35.9]} 21. Be3
{[%clk 0:01:25.2]} 21... Nfe6 {[%clk 0:02:27.3]} 22. Nf3 {[%clk 0:01:21.4]}
22... Nc6 {[%clk 0:02:23.3]} 23. a3 {[%clk 0:01:18.1]} 23... Qd7 {[%clk
0:02:22.3]} 24. Qc2 {[%clk 0:01:16]} 24... Red8 {[%clk 0:02:22.3]} 25. Rad1
{[%clk 0:01:14.5]} 25... h5 {[%clk 0:02:22]} 26. Rfe1 {[%clk 0:01:00.5]} 26...
hxg4 {[%clk 0:02:21.5]} 27. hxg4 {[%clk 0:01:01.4]} 27... Kf8 {[%clk 0:02:07.8]}
28. Nc3 {[%clk 0:00:59]} 28... Ned4 {[%clk 0:02:05.2]} 29. g5 {[%clk 0:00:52.1]}
29... Qg4 {[%clk 0:02:01.8]} 30. Bxd4 {[%clk 0:00:50.5]} 30... Nxd4 {[%clk
0:01:50.4]} 31. Nxd4 {[%clk 0:00:49.2]} 31... exd4 {[%clk 0:01:50.8]} 32. Ne4
{[%clk 0:00:48.7]} 32... f5 {[%clk 0:01:33.3]} 33. Ng3 {[%clk 0:00:35.2]} 33...
f4 {[%clk 0:01:23.6]} 34. Qxc7 {[%clk 0:00:33.6]} 34... fxg3 {[%clk 0:01:20.2]}
35. fxg3 {[%clk 0:00:33.1]} 35... Rd7 {[%clk 0:01:14.6]} 36. Qf4 {[%clk
0:00:31.4]} 36... Qh5 {[%clk 0:01:06]} 37. Bf3 {[%clk 0:00:30]} 37... Qh7 {[%clk
0:01:00.8]} 38. Be4 {[%clk 0:00:26.8]} 38... g6 {[%clk 0:01:01]} 39. Rf1 {[%clk
0:00:25.7]} 39... Ra5 {[%clk 0:00:57.1]} 40. Rf2 {[%clk 0:00:23.9]} 40... Qh5
{[%clk 0:00:56.2]} 41. Qb8+ {[%clk 0:00:15.6]} 41... Kg7 {[%clk 0:00:51.2]} 42.
Rdf1 {[%clk 0:00:15.6]} 42... Rxg5 {[%clk 0:00:50.2]} 43. Rxf7+ {[%clk 0:00:08]}
43... Rxf7 {[%clk 0:00:49.9]} 44. Rxf7+ {[%clk 0:00:07.7]} 44... Kxf7 {[%clk
0:00:50.4]} 45. Qxb7+ {[%clk 0:00:08.2]} 45... Kf6 {[%clk 0:00:48]} 46. Qxb6+
{[%clk 0:00:05.3]} 46... Kg7 {[%clk 0:00:48.4]} 47. Qxd4+ {[%clk 0:00:05]} 47...
Kh6 {[%clk 0:00:49.3]} 48. Qh8# {[%clk 0:00:04.2]} 1-0

[Event "Early-Titled-Tuesday-Blitz-March-26-2024"]
[Site "Chess.com"]
[Date "2024.03.26"]
[Round "10"]
[White "Kapitan_Bayan"]
[Black "lukazz029"]
[Result "0-1"]
[WhiteElo "2270"]
[BlackElo "2033"]
[TimeControl "180+1"]
[EndTime "9:53:02 PDT"]
[Termination "lukazz029 won by checkmate"]

1. e4 {[%clk 0:02:59.1]} 1... c5 {[%clk 0:02:57.9]} 2. Nf3 {[%clk 0:02:57.2]}
2... d6 {[%clk 0:02:58.1]} 3. d4 {[%clk 0:02:57.3]} 3... cxd4 {[%clk 0:02:59]}
4. Nxd4 {[%clk 0:02:57.7]} 4... Nf6 {[%clk 0:02:59.6]} 5. Nc3 {[%clk 0:02:57.7]}
5... a6 {[%clk 0:03:00.1]} 6. f3 {[%clk 0:02:57]} 6... e6 {[%clk 0:02:57]} 7.
Be3 {[%clk 0:02:56.1]} 7... Qc7 {[%clk 0:02:57.5]} 8. Qd2 {[%clk 0:02:55.2]}
8... b5 {[%clk 0:02:57.9]} 9. g4 {[%clk 0:02:50]} 9... Nc6 {[%clk 0:02:55.9]}
10. h4 {[%clk 0:02:33.5]} 10... Nd7 {[%clk 0:02:46.1]} 11. O-O-O {[%clk
0:02:24.7]} 11... b4 {[%clk 0:02:44.8]} 12. Nce2 {[%clk 0:02:20.1]} 12... Nce5
{[%clk 0:02:35.5]} 13. Ng3 {[%clk 0:01:44.9]} 13... Rb8 {[%clk 0:02:30.1]} 14.
g5 {[%clk 0:01:35.4]} 14... Nb6 {[%clk 0:02:24.9]} 15. b3 {[%clk 0:00:55.4]}
15... Be7 {[%clk 0:01:35.3]} 16. h5 {[%clk 0:00:43.7]} 16... Bd7 {[%clk
0:01:28]} 17. Bh3 {[%clk 0:00:33.5]} 17... a5 {[%clk 0:01:01.7]} 18. f4 {[%clk
0:00:23]} 18... Nec4 {[%clk 0:01:01.4]} 19. bxc4 {[%clk 0:00:20.5]} 19... Nxc4
{[%clk 0:01:02.3]} 20. Qe2 {[%clk 0:00:18.4]} 20... a4 {[%clk 0:01:00.7]} 21. g6
{[%clk 0:00:15.7]} 21... b3 {[%clk 0:00:54.5]} 22. gxf7+ {[%clk 0:00:12.2]}
22... Kf8 {[%clk 0:00:54.1]} 23. axb3 {[%clk 0:00:09.4]} 23... axb3 {[%clk
0:00:53.9]} 24. Nxe6+ {[%clk 0:00:06.6]} 24... Bxe6 {[%clk 0:00:53.4]} 25. Bxe6
{[%clk 0:00:06.3]} 25... b2+ {[%clk 0:00:40]} 26. Kb1 {[%clk 0:00:06.3]} 26...
Na3+ {[%clk 0:00:28.5]} 27. Ka2 {[%clk 0:00:06.4]} 27... Qa5 {[%clk 0:00:22.4]}
28. Qd2 {[%clk 0:00:03.7]} 28... Qa8 {[%clk 0:00:11.3]} 29. Bd5 {[%clk
0:00:02.6]} 29... Qa4 {[%clk 0:00:11.2]} 30. Qd4 {[%clk 0:00:01.1]} 30... Nc4+
{[%clk 0:00:10.5]} 31. Kb1 {[%clk 0:00:01.3]} 31... Qa1# {[%clk 0:00:10.7]} 0-1

[Event "Early-Titled-Tuesday-Blitz-March-26-2024"]
[Site "Chess.com"]
[Date "2024.03.26"]
[Round "10"]
[White "AlexanderKing"]
[Black "tusplingher"]
[Result "0-1"]
[WhiteElo "2632"]
[BlackElo "2515"]
[TimeControl "180+1"]
[EndTime "9:53:03 PDT"]
[Termination "tusplingher won on time"]

1. c4 {[%clk 0:03:00.9]} 1... Nf6 {[%clk 0:02:54]} 2. g3 {[%clk 0:03:00.5]} 2...
e6 {[%clk 0:02:53.7]} 3. Nf3 {[%clk 0:03:00.4]} 3... a6 {[%clk 0:02:53.9]} 4.
Bg2 {[%clk 0:02:59.6]} 4... b5 {[%clk 0:02:53.7]} 5. b3 {[%clk 0:02:54.6]} 5...
Bb7 {[%clk 0:02:53.5]} 6. O-O {[%clk 0:02:53.7]} 6... Be7 {[%clk 0:02:53.3]} 7.
Bb2 {[%clk 0:02:47.2]} 7... O-O {[%clk 0:02:53.1]} 8. d4 {[%clk 0:02:31.1]} 8...
d6 {[%clk 0:02:36.6]} 9. Re1 {[%clk 0:02:23.6]} 9... Nbd7 {[%clk 0:02:26.7]} 10.
Nbd2 {[%clk 0:02:19.1]} 10... c5 {[%clk 0:02:17.8]} 11. e3 {[%clk 0:01:49.9]}
11... Rb8 {[%clk 0:02:14.4]} 12. Qc2 {[%clk 0:01:39.3]} 12... bxc4 {[%clk
0:02:07.7]} 13. bxc4 {[%clk 0:01:34.2]} 13... cxd4 {[%clk 0:02:03.7]} 14. exd4
{[%clk 0:01:32.8]} 14... Qc7 {[%clk 0:02:00.8]} 15. Rab1 {[%clk 0:01:28.9]}
15... Rfc8 {[%clk 0:01:59.3]} 16. h3 {[%clk 0:01:25.6]} 16... Bf8 {[%clk
0:01:52.4]} 17. Ba3 {[%clk 0:01:19.1]} 17... Bc6 {[%clk 0:01:46.5]} 18. Qc3
{[%clk 0:01:00.2]} 18... d5 {[%clk 0:01:44]} 19. Bxf8 {[%clk 0:00:58.3]} 19...
Rxf8 {[%clk 0:01:40]} 20. c5 {[%clk 0:00:58.3]} 20... Rfc8 {[%clk 0:01:32.4]}
21. Bf1 {[%clk 0:00:49.1]} 21... a5 {[%clk 0:01:20.4]} 22. Bd3 {[%clk
0:00:35.7]} 22... Rxb1 {[%clk 0:01:16.7]} 23. Rxb1 {[%clk 0:00:35.8]} 23... Rb8
{[%clk 0:01:17.4]} 24. Rxb8+ {[%clk 0:00:32.6]} 24... Nxb8 {[%clk 0:01:18]} 25.
Ne5 {[%clk 0:00:32.7]} 25... Nfd7 {[%clk 0:01:13.9]} 26. Nxc6 {[%clk 0:00:28.7]}
26... Nxc6 {[%clk 0:01:13.6]} 27. Bb5 {[%clk 0:00:29.1]} 27... e5 {[%clk
0:01:04.5]} 28. Bxc6 {[%clk 0:00:19.9]} 28... Qxc6 {[%clk 0:01:04.1]} 29. Nb3
{[%clk 0:00:18.4]} 29... exd4 {[%clk 0:00:59.2]} 30. Qxa5 {[%clk 0:00:18.6]}
30... d3 {[%clk 0:00:49]} 31. Qd8+ {[%clk 0:00:14.1]} 31... Nf8 {[%clk
0:00:48.6]} 32. Qg5 {[%clk 0:00:13.6]} 32... Ne6 {[%clk 0:00:41.5]} 33. Qe3
{[%clk 0:00:10.7]} 33... Qb5 {[%clk 0:00:30.7]} 34. Nd4 {[%clk 0:00:03.1]} 34...
Qxc5 {[%clk 0:00:18.5]} 35. Nxe6 {[%clk 0:00:01.8]} 35... Qxe3 {[%clk
0:00:18.7]} 36. fxe3 {[%clk 0:00:01.7]} 36... d2 {[%clk 0:00:19.3]} 0-1

[Event "Early-Titled-Tuesday-Blitz-March-26-2024"]
[Site "Chess.com"]
[Date "2024.03.26"]
[Round "10"]
[White "Bada_norovsambuu"]
[Black "FREDERICKtheMATE"]
[Result "0-1"]
[WhiteElo "2220"]
[BlackElo "2674"]
[TimeControl "180+1"]
[EndTime "9:53:03 PDT"]
[Termination "FREDERICKtheMATE won on time"]

1. Nf3 {[%clk 0:03:00.9]} 1... Nf6 {[%clk 0:02:59.7]} 2. d4 {[%clk 0:03:00.1]}
2... d5 {[%clk 0:02:59.1]} 3. c4 {[%clk 0:02:59.1]} 3... c6 {[%clk 0:02:59.5]}
4. Qc2 {[%clk 0:02:58.1]} 4... dxc4 {[%clk 0:02:57.6]} 5. Qxc4 {[%clk
0:02:57.6]} 5... Bf5 {[%clk 0:02:57.1]} 6. Nc3 {[%clk 0:02:52.7]} 6... Nbd7
{[%clk 0:02:57.1]} 7. g3 {[%clk 0:02:51.7]} 7... e6 {[%clk 0:02:56.4]} 8. Bg2
{[%clk 0:02:51]} 8... Rc8 {[%clk 0:02:53.7]} 9. O-O {[%clk 0:02:48.6]} 9... b5
{[%clk 0:02:53.7]} 10. Qb3 {[%clk 0:02:47.6]} 10... h6 {[%clk 0:02:54.1]} 11.
Re1 {[%clk 0:02:40.5]} 11... b4 {[%clk 0:02:50.9]} 12. Na4 {[%clk 0:02:37]}
12... Be7 {[%clk 0:02:49.7]} 13. Nh4 {[%clk 0:02:36.7]} 13... Be4 {[%clk
0:02:47]} 14. f3 {[%clk 0:02:34.8]} 14... Bh7 {[%clk 0:02:46.8]} 15. Bf1 {[%clk
0:02:30.8]} 15... O-O {[%clk 0:02:38.9]} 16. e4 {[%clk 0:02:29.5]} 16... c5
{[%clk 0:02:39]} 17. Be3 {[%clk 0:02:22.4]} 17... cxd4 {[%clk 0:02:37]} 18. Bxd4
{[%clk 0:02:21.8]} 18... a5 {[%clk 0:02:34.8]} 19. Red1 {[%clk 0:02:20.2]} 19...
Qc7 {[%clk 0:02:33.2]} 20. Ng2 {[%clk 0:02:12.9]} 20... Qb7 {[%clk 0:02:31.7]}
21. Qe3 {[%clk 0:02:07.4]} 21... Rc6 {[%clk 0:02:26.2]} 22. Rac1 {[%clk
0:01:56.8]} 22... Rfc8 {[%clk 0:02:25.6]} 23. Rxc6 {[%clk 0:01:55.7]} 23... Qxc6
{[%clk 0:02:26.5]} 24. b3 {[%clk 0:01:53.3]} 24... e5 {[%clk 0:02:26]} 25. Bb2
{[%clk 0:01:42.7]} 25... Qb7 {[%clk 0:02:12.3]} 26. Qe1 {[%clk 0:01:24.1]} 26...
Nc5 {[%clk 0:01:54.1]} 27. Nxc5 {[%clk 0:01:20.1]} 27... Rxc5 {[%clk 0:01:50.4]}
28. Kh1 {[%clk 0:01:21]} 28... Rc2 {[%clk 0:01:48.7]} 29. Rd2 {[%clk 0:01:19.2]}
29... Qc6 {[%clk 0:01:44.2]} 30. Rxc2 {[%clk 0:01:17.9]} 30... Qxc2 {[%clk
0:01:45.1]} 31. Bxe5 {[%clk 0:01:05.7]} 31... Qxa2 {[%clk 0:01:42]} 32. Bc4
{[%clk 0:01:05.6]} 32... Bg6 {[%clk 0:01:39.3]} 33. Nf4 {[%clk 0:01:04.3]} 33...
Kh7 {[%clk 0:01:37.8]} 34. Nxg6 {[%clk 0:00:54.7]} 34... fxg6 {[%clk 0:01:36.9]}
35. Qa1 {[%clk 0:00:49.1]} 35... Qxa1+ {[%clk 0:01:34.5]} 36. Bxa1 {[%clk
0:00:48]} 36... Nd7 {[%clk 0:01:34.9]} 37. Bd4 {[%clk 0:00:47]} 37... Bf6 {[%clk
0:01:34.4]} 38. Ba7 {[%clk 0:00:44.6]} 38... Ne5 {[%clk 0:01:31.9]} 39. Be2
{[%clk 0:00:43.9]} 39... a4 {[%clk 0:01:26.5]} 40. bxa4 {[%clk 0:00:41.4]} 40...
b3 {[%clk 0:01:21.6]} 41. Bd4 {[%clk 0:00:41]} 41... Nxf3 {[%clk 0:01:15.1]} 42.
Bxf6 {[%clk 0:00:37.7]} 42... gxf6 {[%clk 0:01:16]} 43. Bd3 {[%clk 0:00:22]}
43... Ne5 {[%clk 0:01:13.5]} 44. Bb1 {[%clk 0:00:18.9]} 44... Nc4 {[%clk
0:01:12.9]} 45. Bd3 {[%clk 0:00:16.4]} 45... b2 {[%clk 0:01:13.3]} 46. Kg1
{[%clk 0:00:13.6]} 46... Kg7 {[%clk 0:01:13.2]} 47. Kf2 {[%clk 0:00:13.7]} 47...
Kf8 {[%clk 0:01:13.4]} 48. Ke1 {[%clk 0:00:14]} 48... Ke7 {[%clk 0:01:12.1]} 49.
Kd1 {[%clk 0:00:13.8]} 49... Na3 {[%clk 0:01:11.4]} 50. a5 {[%clk 0:00:07.9]}
50... Kd6 {[%clk 0:01:11.6]} 51. a6 {[%clk 0:00:04.6]} 51... Kc7 {[%clk
0:01:11.6]} 52. e5 {[%clk 0:00:04.9]} 52... fxe5 {[%clk 0:01:09]} 53. Be4 {[%clk
0:00:02]} 53... b1=Q+ {[%clk 0:01:07.8]} 54. Bxb1 {[%clk 0:00:01.8]} 54... Nxb1
{[%clk 0:01:08.7]} 55. Ke2 {[%clk 0:00:01.6]} 55... Nc3+ {[%clk 0:01:06.6]} 56.
Ke3 {[%clk 0:00:02.5]} 56... Nb5 {[%clk 0:01:06.8]} 57. Ke4 {[%clk 0:00:02.5]}
57... Kd6 {[%clk 0:01:07.4]} 0-1

[Event "Early-Titled-Tuesday-Blitz-March-26-2024"]
[Site "Chess.com"]
[Date "2024.03.26"]
[Round "10"]
[White "Josetricks"]
[Black "ChainedDowntohell"]
[Result "0-1"]
[WhiteElo "2707"]
[BlackElo "2550"]
[TimeControl "180+1"]
[EndTime "9:53:04 PDT"]
[Termination "ChainedDowntohell won by resignation"]

1. d4 {[%clk 0:03:00.9]} 1... Nf6 {[%clk 0:02:57.4]} 2. Nc3 {[%clk 0:03:01.2]}
2... e6 {[%clk 0:02:56.1]} 3. e4 {[%clk 0:03:00.8]} 3... Bb4 {[%clk 0:02:55.7]}
4. e5 {[%clk 0:02:55]} 4... Ne4 {[%clk 0:02:55.2]} 5. Qd3 {[%clk 0:02:50.5]}
5... d5 {[%clk 0:02:48.8]} 6. exd6 {[%clk 0:02:48.9]} 6... Nxd6 {[%clk
0:02:44.1]} 7. Bd2 {[%clk 0:02:37.3]} 7... b6 {[%clk 0:02:36.9]} 8. O-O-O {[%clk
0:02:36.5]} 8... Ba6 {[%clk 0:02:30.2]} 9. Qf3 {[%clk 0:02:30.6]} 9... Bb7
{[%clk 0:02:29.4]} 10. Qg4 {[%clk 0:02:26.2]} 10... O-O {[%clk 0:02:28.3]} 11.
a3 {[%clk 0:02:24.5]} 11... Bxc3 {[%clk 0:02:23.9]} 12. Bxc3 {[%clk 0:02:25.4]}
12... Ne4 {[%clk 0:02:16.8]} 13. Be1 {[%clk 0:02:12.2]} 13... Nd7 {[%clk
0:02:14.1]} 14. Bd3 {[%clk 0:02:10.8]} 14... Ndf6 {[%clk 0:02:09.2]} 15. Qh4
{[%clk 0:02:02.7]} 15... Qd5 {[%clk 0:01:43.7]} 16. Kb1 {[%clk 0:02:00.5]} 16...
Rfd8 {[%clk 0:01:09.2]} 17. f3 {[%clk 0:01:58.1]} 17... Nd6 {[%clk 0:01:06.3]}
18. Nh3 {[%clk 0:01:38]} 18... Nf5 {[%clk 0:01:04.2]} 19. Bxf5 {[%clk
0:01:33.3]} 19... Qxf5 {[%clk 0:01:03.8]} 20. Nf2 {[%clk 0:01:15.8]} 20... Rd7
{[%clk 0:00:58.2]} 21. h3 {[%clk 0:01:06.9]} 21... Rad8 {[%clk 0:00:56.2]} 22.
Ng4 {[%clk 0:01:04.8]} 22... c5 {[%clk 0:00:27.6]} 23. Nxf6+ {[%clk 0:00:52]}
23... Qxf6 {[%clk 0:00:20.6]} 24. Qxf6 {[%clk 0:00:51.7]} 24... gxf6 {[%clk
0:00:21.5]} 25. c3 {[%clk 0:00:41.8]} 25... e5 {[%clk 0:00:20.2]} 26. Bh4 {[%clk
0:00:39.8]} 26... Kg7 {[%clk 0:00:16.1]} 27. d5 {[%clk 0:00:34.4]} 27... Rxd5
{[%clk 0:00:14.7]} 28. Kc2 {[%clk 0:00:30.9]} 28... Bc6 {[%clk 0:00:14.4]} 29.
b3 {[%clk 0:00:20.2]} 29... c4 {[%clk 0:00:12.5]} 30. Rxd5 {[%clk 0:00:15.4]}
30... Rxd5 {[%clk 0:00:11.8]} 31. bxc4 {[%clk 0:00:15.1]} 31... Ba4+ {[%clk
0:00:11.7]} 32. Kc1 {[%clk 0:00:15.1]} 32... Rd3 {[%clk 0:00:11.8]} 33. Be1
{[%clk 0:00:13.8]} 33... Rd1+ {[%clk 0:00:10.9]} 34. Kb2 {[%clk 0:00:13.5]}
34... Kg6 {[%clk 0:00:08.4]} 35. Rg1 {[%clk 0:00:13.9]} 35... Kf5 {[%clk
0:00:07.2]} 36. Bf2 {[%clk 0:00:14.3]} 36... Rd2+ {[%clk 0:00:07.1]} 0-1

[Event "Early-Titled-Tuesday-Blitz-March-26-2024"]
[Site "Chess.com"]
[Date "2024.03.26"]
[Round "10"]
[White "Better_Chess_Faster"]
[Black "teresin05"]
[Result "1-0"]
[WhiteElo "2190"]
[BlackElo "2247"]
[TimeControl "180+1"]
[EndTime "9:53:04 PDT"]
[Termination "Better_Chess_Faster won by resignation"]

1. d4 {[%clk 0:03:00.9]} 1... d5 {[%clk 0:02:59.1]} 2. Bf4 {[%clk 0:03:00]} 2...
Nf6 {[%clk 0:02:57.1]} 3. e3 {[%clk 0:03:00]} 3... c5 {[%clk 0:02:56.9]} 4. c3
{[%clk 0:02:59.1]} 4... Nc6 {[%clk 0:02:54.6]} 5. Nd2 {[%clk 0:02:59]} 5... Bf5
{[%clk 0:02:53.8]} 6. Ngf3 {[%clk 0:02:57.1]} 6... cxd4 {[%clk 0:02:50.4]} 7.
exd4 {[%clk 0:02:56.3]} 7... e6 {[%clk 0:02:46]} 8. Bb5 {[%clk 0:02:56.3]} 8...
Bd6 {[%clk 0:02:46.1]} 9. Ne5 {[%clk 0:02:55.2]} 9... Bxe5 {[%clk 0:02:42.2]}
10. dxe5 {[%clk 0:02:53.7]} 10... Nd7 {[%clk 0:02:41.7]} 11. O-O {[%clk
0:02:43.5]} 11... O-O {[%clk 0:02:24.7]} 12. Re1 {[%clk 0:02:42.7]} 12... Qc7
{[%clk 0:02:23.2]} 13. Nb3 {[%clk 0:02:33.6]} 13... a6 {[%clk 0:02:12.2]} 14.
Bxc6 {[%clk 0:02:31]} 14... bxc6 {[%clk 0:02:11.6]} 15. Nd4 {[%clk 0:02:28.2]}
15... c5 {[%clk 0:02:10.5]} 16. Nxf5 {[%clk 0:02:27]} 16... exf5 {[%clk
0:02:11.4]} 17. Qxd5 {[%clk 0:02:21.8]} 17... Nb6 {[%clk 0:02:07.2]} 18. Qd6
{[%clk 0:02:11.6]} 18... Qxd6 {[%clk 0:01:54.4]} 19. exd6 {[%clk 0:02:11.3]}
19... Nd5 {[%clk 0:01:54.7]} 20. Be3 {[%clk 0:02:01.1]} 20... Rac8 {[%clk
0:01:33.9]} 21. Rad1 {[%clk 0:01:59.8]} 21... Nxe3 {[%clk 0:01:29.5]} 22. Rxe3
{[%clk 0:01:58.3]} 22... Rfd8 {[%clk 0:01:30]} 23. d7 {[%clk 0:01:41.9]} 23...
Rb8 {[%clk 0:01:25.8]} 24. Re5 {[%clk 0:01:38.5]} 24... Kf8 {[%clk 0:01:21.9]}
25. Rxc5 {[%clk 0:01:34.5]} 25... Rxb2 {[%clk 0:01:20.8]} 26. f4 {[%clk
0:01:25.5]} 26... Rxa2 {[%clk 0:01:19.5]} 27. Rxf5 {[%clk 0:01:25.2]} 27... Ra3
{[%clk 0:01:06.8]} 28. Rc5 {[%clk 0:01:23.8]} 28... Ra4 {[%clk 0:01:04.4]} 29.
g3 {[%clk 0:01:21.2]} 29... Re4 {[%clk 0:01:04.6]} 30. Rc7 {[%clk 0:01:06.2]}
30... Ke7 {[%clk 0:01:01.4]} 31. c4 {[%clk 0:01:04]} 31... a5 {[%clk 0:00:43.1]}
32. c5 {[%clk 0:01:02.2]} 32... a4 {[%clk 0:00:42.1]} 33. c6 {[%clk 0:00:58.4]}
33... Rc4 {[%clk 0:00:42.6]} 34. Rc8 {[%clk 0:00:48.2]} 34... Re4 {[%clk
0:00:36.2]} 35. Kf2 {[%clk 0:00:39.2]} 35... a3 {[%clk 0:00:35.8]} 36. Ra8
{[%clk 0:00:38.4]} 36... Rxa8 {[%clk 0:00:22.5]} 37. c7 {[%clk 0:00:37.8]} 37...
Rd8 {[%clk 0:00:11.4]} 38. c8=Q {[%clk 0:00:32.2]} 38... a2 {[%clk 0:00:11.6]}
39. Qc5+ {[%clk 0:00:29.4]} 39... Kf6 {[%clk 0:00:11]} 40. Qc6+ {[%clk
0:00:27.6]} 40... Ke7 {[%clk 0:00:10.9]} 41. Qxe4+ {[%clk 0:00:27.1]} 41... Kf8
{[%clk 0:00:11.4]} 42. Qa4 {[%clk 0:00:25.1]} 42... g6 {[%clk 0:00:10.4]} 43.
Qxa2 {[%clk 0:00:24.5]} 43... Kg7 {[%clk 0:00:10.9]} 44. Qa5 {[%clk 0:00:24.4]}
1-0